bitfinex/quotes_BTCUSD_20260126
["timestamp","ask_amount","ask_price","bid_price","bid_amount"]
[1769452543578,5.617e-05,88365.0,88346.0,0.06790248]
[1769452543790,5.617e-05,88365.0,88347.0,0.0636283]
[1769452544331,0.01131413,88385.0,88352.0,0.01131836]
[1769452544532,0.00556077,88380.0,88355.0,0.63628298]
[1769452544767,0.00556077,88380.0,88358.0,0.02485886]
[1769452545271,0.03,88376.0,88358.0,0.02485886]
[1769452545429,0.03,88376.0,88357.0,0.52923121]
[1769452545616,0.03,88370.0,88342.0,0.63628298]
[1769452545819,0.03,88370.0,88353.0,0.01131823]
[1769452546053,0.03,88370.0,88353.0,0.63628298]
[1769452546254,0.03,88370.0,88357.0,0.63628298]
[1769452546469,0.03,88370.0,88360.0,0.02485886]
[1769452546651,0.03,88369.0,88361.0,0.66114184]
[1769452546863,0.03,88369.0,88361.0,0.49579292]
[1769452547269,0.03,88360.0,88341.0,0.64760275]
[1769452547467,0.03,88360.0,88349.0,0.04532]
[1769452547833,0.03,88360.0,88349.0,0.70646184]
[1769452548051,0.170316,88369.0,88349.0,0.70646184]
[1769452548256,0.03,88379.0,88352.0,0.02485886]
[1769452548453,0.03,88379.0,88355.0,0.63628298]
[1769452548691,0.03,88379.0,88358.0,0.67450467]
[1769452549471,0.03,88379.0,88360.0,0.64988883]
[1769452550762,0.03,88377.0,88360.0,0.64988883]
[1769452550994,0.03,88375.0,88352.0,0.64988883]
[1769452551204,0.03,88375.0,88356.0,0.64988883]
[1769452551405,0.03,88375.0,88356.0,0.74472882]
[1769452551606,0.03,88375.0,88359.0,0.02461584]
[1769452551861,0.03,88375.0,88360.0,0.67450467]
[1769452552020,0.03,88374.0,88361.0,0.02461584]
[1769452552222,0.01252259,88405.0,88374.0,0.64988883]
[1769452552398,0.01252259,88401.0,88377.0,0.02461584]
[1769452552606,0.01252259,88399.0,88379.0,0.02461584]
[1769452552855,0.01252259,88399.0,88380.0,0.64988883]
[1769452553053,0.03,88398.0,88380.0,0.64988883]
[1769452553339,0.03,88398.0,88367.0,0.01131644]
[1769452553340,0.03,88390.0,88367.0,0.64988883]
[1769452553540,0.03,88384.0,88368.0,0.01131631]
[1769452553907,0.03,88384.0,88368.0,0.64988883]
[1769452554356,0.03,88384.0,88368.0,0.67450467]
[1769452554537,0.0066048,88384.0,88364.0,0.01131682]
[1769452554740,0.0066048,88384.0,88361.0,0.66120604]
[1769452554741,0.0366048,88384.0,88362.0,0.02461584]
[1769452554955,0.03,88384.0,88367.0,0.67450467]
[1769452555821,0.03,88383.0,88368.0,0.64988883]
[1769452556993,0.02352539,88387.0,88368.0,0.64988883]
[1769452556994,0.03,88382.0,88368.0,0.64988883]
[1769452557724,0.02352539,88387.0,88370.0,0.64988883]
[1769452557926,0.03,88386.0,88370.0,0.61518877]
[1769452558045,0.01252259,88393.0,88370.0,0.61518877]
[1769452558253,0.02352539,88394.0,88375.0,0.02461584]
[1769452558447,0.02352539,88394.0,88377.0,0.02461584]
[1769452558686,0.01,88377.0,88367.0,0.01131644]
[1769452558861,0.03,88376.0,88370.0,0.64988883]
[1769452559061,0.03,88376.0,88366.0,0.05658235]
[1769452559062,0.03,88376.0,88373.0,0.02461584]
[1769452559266,0.02352539,88392.0,88375.0,0.67352477]
[1769452559685,0.02352539,88392.0,88375.0,0.71724131]
[1769452559886,0.03,88391.0,88376.0,0.02461584]
[1769452560490,0.03,88385.0,88367.0,0.01131644]
[1769452560717,0.03,88385.0,88371.0,0.64988883]
[1769452560921,0.03,88385.0,88373.0,0.67450467]
[1769452561333,0.03,88385.0,88363.0,0.01131695]
[1769452561489,0.04116039,88385.0,88366.0,0.64988883]
[1769452561693,0.04116039,88385.0,88360.0,0.01131733]
[1769452561694,0.03,88381.0,88359.0,0.05658696]
[1769452561919,0.03,88375.0,88350.0,0.64988883]
[1769452562098,0.47221237,88380.0,88330.0,0.1675544]
[1769452562099,0.03,88369.0,88351.0,0.0565921]
[1769452562322,0.03,88369.0,88354.0,0.02461584]
[1769452562522,0.03,88369.0,88356.0,0.67450467]
[1769452562723,0.05663439,88383.0,88345.0,0.64988883]
[1769452562724,0.70949503,88365.0,88345.0,0.64988883]
[1769452562927,0.03,88363.0,88345.0,0.64988883]
[1769452563129,0.03,88363.0,88345.0,0.67450467]
[1769452563340,0.03,88363.0,88347.0,0.011319]
[1769452563500,0.03,88359.0,88342.0,0.01131964]
[1769452563698,0.03,88357.0,88341.0,0.01131977]
[1769452563909,0.70949503,88357.0,88341.0,0.01131977]
[1769452564151,0.03,88357.0,88347.0,0.011319]
[1769452564347,0.03,88357.0,88348.0,0.09186856]
[1769452564554,0.03,88357.0,88348.0,0.02461584]
[1769452564756,0.03,88356.0,88348.0,0.02461584]
[1769452564958,0.03,88356.0,88343.0,0.01131951]
[1769452565297,0.03,88356.0,88343.0,0.09253262]
[1769452565473,0.03,88356.0,88344.0,0.64988883]
[1769452565835,0.03,88355.0,88334.0,0.04532]
[1769452566067,0.73302042,88355.0,88335.0,0.02461584]
[1769452566238,0.73302042,88355.0,88327.0,0.04532]
[1769452566239,0.03,88347.0,88324.0,0.18528195]
[1769452566436,0.73302042,88345.0,88327.0,0.64988883]
[1769452566641,0.73302042,88345.0,88325.0,0.0004588]
[1769452566642,0.03,88343.0,88325.0,0.0004588]
[1769452566823,0.03,88337.0,88325.0,0.0004588]
[1769452567469,0.03,88335.0,88325.0,0.0004588]
[1769452567670,0.03,88333.0,88325.0,0.65034763]
[1769452567911,0.02352539,88341.0,88335.0,0.01]
[1769452568296,0.02352539,88341.0,88325.0,0.0004588]
[1769452568716,0.03,88340.0,88325.0,0.0004588]
[1769452568919,0.03,88336.0,88325.0,0.0004588]
[1769452569527,0.73150057,88334.0,88316.0,0.02461584]
[1769452569730,0.02352539,88325.0,88304.0,0.01132451]
[1769452570042,0.03,88324.0,88305.0,0.64988883]
[1769452570199,0.03,88324.0,88307.0,0.67450467]
[1769452570825,0.03,88324.0,88307.0,0.02461584]
[1769452572219,0.03,88323.0,88303.0,0.64988883]
[1769452572418,0.03,88319.0,88301.0,0.02461584]
[1769452572657,0.03,88317.0,88297.0,0.64988883]
[1769452572860,0.67797518,88329.0,88297.0,0.64988883]
[1769452573003,0.67797518,88327.0,88297.0,0.64988883]
[1769452573208,0.67797518,88323.0,88298.0,0.02461584]
[1769452573409,0.02100251,88319.0,88295.0,0.17396]
[1769452573688,0.55835542,88316.0,88295.0,0.17396]
[1769452573893,0.01132182,88325.0,88295.0,0.17396]
[1769452573894,0.55835542,88312.0,88295.0,0.17396]
[1769452574107,0.03,88311.0,88295.0,0.18528566]
[1769452574269,0.03,88311.0,88297.0,0.01132541]
[1769452574478,0.03,88311.0,88298.0,0.05043921]
[1769452574749,0.03,88309.0,88295.0,0.17396]
[1769452574888,0.03,88309.0,88291.0,0.02461584]
[1769452574889,0.03,88303.0,88281.0,0.02461584]
[1769452575097,0.03,88299.0,88281.0,0.02461584]
[1769452575290,0.58835542,88297.0,88281.0,0.02461584]
[1769452575714,0.58835542,88297.0,88276.0,0.64988883]
[1769452575715,0.58835542,88297.0,88277.0,0.174]
[1769452577156,0.58835542,88297.0,88279.0,0.01132772]
[1769452577312,0.58835542,88297.0,88280.0,0.02461584]
[1769452577510,0.58835542,88297.0,88280.0,0.03594343]
[1769452578117,0.58835542,88297.0,88280.0,0.02461584]
[1769452578326,0.60601876,88297.0,88280.0,0.03594343]
[1769452578522,0.60601876,88297.0,88280.0,0.02461584]
[1769452578962,0.58835542,88297.0,88283.0,0.0113272]
[1769452579105,0.03,88296.0,88284.0,0.02343746]
[1769452579307,0.55835542,88304.0,88290.0,0.01132631]
[1769452579512,0.55835542,88316.0,88287.0,0.01132669]
[1769452579712,0.55835542,88314.0,88289.0,0.63028956]
[1769452579932,0.55835542,88314.0,88290.0,0.02343746]
[1769452579933,0.57036319,88314.0,88290.0,0.02343746]
[1769452580156,0.03,88310.0,88290.0,0.02343746]
[1769452580334,0.58835542,88310.0,88290.0,0.02343746]
[1769452580731,0.55835542,88307.0,88290.0,0.02343746]
[1769452580963,0.03,88302.0,88286.0,0.1746244]
[1769452581203,0.03,88300.0,88286.0,0.1746244]
[1769452581482,0.03,88298.0,88286.0,0.1746244]
[1769452582262,0.03,88298.0,88287.0,0.02343746]
[1769452582468,0.03,88297.0,88287.0,0.02343746]
[1769452583041,0.01132695,88285.0,88267.0,0.02343746]
[1769452583244,0.47221237,88300.0,88267.0,0.02343746]
[1769452583245,0.03,88286.0,88267.0,0.02343746]
[1769452583583,0.51707612,88286.0,88267.0,0.02343746]
[1769452584907,0.51707612,88286.0,88261.0,0.01133003]
[1769452584908,0.01132797,88277.0,88223.0,0.02396356]
[1769452585164,0.03,88280.0,88223.0,0.02396356]
[1769452585165,0.0231861,88258.0,88235.0,0.01133337]
[1769452585365,0.0231861,88258.0,88223.0,0.0005261]
[1769452585366,0.03,88257.0,88241.0,0.02343746]
[1769452585500,0.03,88257.0,88238.0,0.0392]
[1769452585679,0.03,88255.0,88238.0,0.0392]
[1769452585913,0.03,88247.0,88234.0,0.17404]
[1769452586327,0.03,88245.0,88234.0,0.17404]
[1769452587230,0.03,88243.0,88224.0,0.02343746]
[1769452587972,0.03,88242.0,88224.0,0.02343746]
[1769452589009,0.03,88242.0,88223.0,0.0005261]
[1769452589010,0.0231861,88233.0,88223.0,0.0005261]
[1769452589216,0.03,88230.0,88223.0,0.0005261]
[1769452589370,0.03,88228.0,88207.0,0.02343746]
[1769452589692,0.03,88228.0,88212.0,0.02436775]
[1769452589889,0.03,88228.0,88207.0,0.02343746]
[1769452590094,0.03,88226.0,88206.0,0.17448]
[1769452590638,0.03,88224.0,88206.0,0.17448]
[1769452590878,0.0531861,88224.0,88206.0,0.17448]
[1769452591081,0.0531861,88224.0,88206.0,0.0004]
[1769452592857,0.03,88231.0,88206.0,0.0004]
[1769452593303,0.07988578,88231.0,88208.0,0.63028956]
[1769452593501,0.0531861,88229.0,88208.0,0.63028956]
[1769452595695,0.03,88227.0,88208.0,0.63028956]
[1769452596141,0.0231861,88228.0,88211.0,5e-05]
[1769452596142,0.03,88225.0,88211.0,5e-05]
[1769452596341,0.03,88223.0,88203.0,0.63028956]
[1769452596559,0.03,88223.0,88205.0,0.63028956]
[1769452597218,0.01133401,88230.0,88202.0,0.0004]
[1769452597219,0.03,88222.0,88206.0,0.02343746]
[1769452597420,0.03,88222.0,88209.0,0.63028956]
[1769452597671,0.03,88222.0,88211.0,0.63028956]
[1769452597866,0.03,88222.0,88212.0,0.06650641]
[1769452598223,0.03,88221.0,88212.0,0.06650641]
[1769452598444,0.03,88221.0,88211.0,0.63028956]
[1769452599416,0.03,88220.0,88211.0,0.63028956]
[1769452600459,0.03,88226.0,88211.0,0.63028956]
[1769452601376,0.03,88226.0,88203.0,0.63028956]
[1769452601377,0.03,88224.0,88203.0,0.63028956]
[1769452601596,0.03,88224.0,88205.0,0.63028956]
[1769452601794,0.03,88224.0,88205.0,0.65372702]
[1769452601943,0.03,88224.0,88207.0,0.63028956]
[1769452602144,0.0231861,88225.0,88207.0,0.65372702]
[1769452602145,0.03,88222.0,88207.0,0.65372702]
[1769452602746,0.03,88222.0,88207.0,0.63028956]
[1769452602948,0.03,88222.0,88209.0,0.63028956]
[1769452603147,0.0231861,88225.0,88209.0,0.63028956]
[1769452603148,0.03,88221.0,88209.0,0.63028956]
[1769452603588,0.01133349,88234.0,88202.0,0.0004]
[1769452603589,0.0231861,88235.0,88211.0,0.63028956]
[1769452603789,0.24839647,88240.0,88202.0,0.0004]
[1769452603790,0.01754375,88240.0,88222.0,0.63028956]
[1769452603998,0.01133285,88239.0,88222.0,0.63028956]
[1769452604202,0.04133298,88238.0,88222.0,0.63028956]
[1769452604520,0.06451908,88238.0,88222.0,0.63028956]
[1769452604876,0.03,88236.0,88222.0,0.63028956]
[1769452605084,0.03,88234.0,88222.0,0.63028956]
[1769452606267,0.03,88237.0,88222.0,0.63028956]
[1769452606465,0.03,88237.0,88223.0,0.02343746]
[1769452606611,0.03,88237.0,88225.0,0.02343746]
[1769452606818,0.03,88237.0,88225.0,0.65372702]
[1769452607293,0.03,88236.0,88225.0,0.65372702]
[1769452607500,0.03,88236.0,88225.0,0.02343746]
[1769452608175,0.22663246,88249.0,88227.0,0.65372702]
[1769452608176,0.03,88246.0,88227.0,0.65372702]
[1769452608388,0.0531861,88246.0,88227.0,0.65372702]
[1769452608548,0.03,88244.0,88227.0,0.65372702]
[1769452609608,0.03,88234.0,88204.0,0.01133735]
[1769452609763,0.03,88232.0,88207.0,0.64396325]
[1769452609979,0.03,88232.0,88210.0,0.02327207]
[1769452610179,0.03,88232.0,88213.0,0.64396325]
[1769452610381,0.03,88232.0,88204.0,0.21956]
[1769452610382,0.03,88232.0,88216.0,0.02327207]
[1769452610581,0.03,88232.0,88217.0,0.66723532]
[1769452610901,0.03,88230.0,88217.0,0.66723532]
[1769452611314,0.03,88230.0,88217.0,0.64396325]
[1769452611532,0.03,88230.0,88219.0,0.64396325]
[1769452611721,0.03,88236.0,88219.0,0.66723532]
[1769452612559,0.03,88236.0,88205.0,0.01133722]
[1769452612560,0.03,88236.0,88221.0,0.64396325]
[1769452612854,0.03,88242.0,88224.0,0.02327207]
[1769452612979,0.03,88242.0,88227.0,0.64396325]
[1769452613183,0.03,88242.0,88227.0,0.66723532]
[1769452613810,0.03,88246.0,88227.0,0.66723532]
[1769452614221,0.03,88244.0,88227.0,0.66723532]
[1769452615135,0.03,88242.0,88213.0,0.64396325]
[1769452615436,0.04133272,88240.0,88218.0,0.02327207]
[1769452615667,0.03,88227.0,88204.0,0.02327207]
[1769452615871,0.03,88223.0,88204.0,0.02327207]
[1769452616073,0.03,88221.0,88205.0,0.02327207]
[1769452616273,0.03,88221.0,88206.0,0.64396325]
[1769452616603,0.04580089,88225.0,88206.0,0.66723532]
[1769452616815,0.04580089,88225.0,88196.0,0.0004]
[1769452616816,0.01133606,88214.0,88167.0,0.22397561]
[1769452617012,0.19294079,88213.0,88185.0,0.64396325]
[1769452617382,0.09801881,88211.0,88190.0,0.02327207]
[1769452617630,0.03,88209.0,88193.0,0.64396325]
[1769452617837,0.03,88209.0,88193.0,0.66723532]
[1769452618597,0.03,88208.0,88193.0,0.66723532]
[1769452618838,0.03,88206.0,88193.0,0.02327207]
[1769452619021,0.03,88206.0,88186.0,0.02327207]
[1769452619175,0.03,88206.0,88180.0,0.47381319]
[1769452619176,0.03,88206.0,88189.0,0.64396325]
[1769452619381,0.03,88206.0,88191.0,0.64396325]
[1769452619585,0.03,88206.0,88191.0,0.66723532]
[1769452619783,0.03,88205.0,88191.0,0.66723532]
[1769452620921,0.05429943,88200.0,88182.0,0.0004]
[1769452621117,0.05429943,88200.0,88183.0,0.64396325]
[1769452621886,0.05429943,88200.0,88183.0,0.66723532]
[1769452622091,0.03,88199.0,88183.0,0.64396325]
[1769452622370,0.03,88199.0,88186.0,0.02327207]
[1769452622527,0.03,88199.0,88188.0,0.02327207]
[1769452622726,0.01133555,88218.0,88199.0,0.01]
[1769452622892,0.02429943,88216.0,88195.0,0.64396325]
[1769452623090,0.03,88215.0,88195.0,0.64396325]
[1769452623292,0.03,88215.0,88197.0,0.66723532]
[1769452623779,0.02429943,88207.0,88185.0,0.64396325]
[1769452623981,0.02429943,88207.0,88181.0,0.01134031]
[1769452623982,0.03,88206.0,88187.0,0.64396325]
[1769452624186,0.03,88206.0,88189.0,0.64396325]
[1769452624459,0.03,88206.0,88191.0,0.64396325]
[1769452625376,0.03,88206.0,88191.0,0.64170219]
[1769452625574,0.03,88206.0,88191.0,0.68166963]
[1769452625992,0.01133529,88220.0,88191.0,0.68166963]
[1769452626191,0.03,88215.0,88194.0,0.02327207]
[1769452626377,0.03,88215.0,88197.0,0.64396325]
[1769452626591,0.05429943,88215.0,88197.0,0.64396325]
[1769452626960,0.0454,88230.0,88200.0,0.48515105]
[1769452627195,0.0454,88230.0,88204.0,0.02327207]
[1769452627196,0.11305403,88229.0,88204.0,0.02327207]
[1769452627505,0.14305403,88228.0,88209.0,0.64396325]
[1769452627693,0.03,88228.0,88209.0,0.66723532]
[1769452627909,0.03,88226.0,88209.0,0.66682597]
[1769452628042,0.03,88226.0,88209.0,0.66658839]
[1769452628450,0.03,88226.0,88211.0,0.64396325]
[1769452628852,0.03,88227.0,88211.0,0.64396325]
[1769452630145,0.03,88227.0,88211.0,0.64112145]
[1769452630279,0.03996994,88227.0,88211.0,0.64112145]
[1769452631111,0.03,88229.0,88212.0,0.02327207]
[1769452631318,0.02429943,88236.0,88215.0,0.64396325]
[1769452631529,0.02429943,88236.0,88218.0,0.64396325]
[1769452631720,0.02429943,88236.0,88219.0,0.02327207]
[1769452631917,0.02429943,88236.0,88220.0,0.02327207]
[1769452632120,0.03,88235.0,88220.0,0.66723532]
[1769452632611,0.2427,88238.0,88223.0,0.02327207]
[1769452632768,0.0454,88241.0,88225.0,0.66723532]
[1769452633287,0.03,88240.0,88226.0,0.02327207]
[1769452633496,0.03,88240.0,88226.0,0.66723532]
[1769452634092,0.02429943,88257.0,88227.0,0.02327207]
[1769452634296,0.03,88252.0,88230.0,0.64396325]
[1769452634503,0.05429943,88252.0,88232.0,0.66723532]
[1769452634702,0.03,88250.0,88232.0,0.66723532]
[1769452635221,0.04133144,88250.0,88232.0,0.66723532]
[1769452635438,0.05429943,88250.0,88232.0,0.66723532]
[1769452635629,0.03,88247.0,88233.0,0.06763634]
[1769452636361,0.03,88247.0,88232.0,0.66723532]
[1769452636362,0.02429943,88250.0,88232.0,0.64396325]
[1769452636508,0.01133028,88259.0,88235.0,0.02327207]
[1769452636509,0.03,88255.0,88235.0,0.02327207]
[1769452636872,0.03,88253.0,88235.0,0.66723532]
[1769452637006,0.03,88253.0,88229.0,0.01133414]
[1769452637007,0.03,88253.0,88237.0,0.64396325]
[1769452637204,0.03,88253.0,88237.0,0.66723532]
[1769452637420,0.03,88253.0,88239.0,0.66723532]
[1769452637656,0.03,88253.0,88241.0,0.64396325]
[1769452637882,0.01132964,88264.0,88241.0,0.64396325]
[1769452637883,0.03,88257.0,88241.0,0.64396325]
[1769452638044,0.03,88257.0,88240.0,0.02327207]
[1769452638281,0.05429943,88257.0,88240.0,0.02327207]
[1769452638501,0.03,88255.0,88240.0,0.02327207]
[1769452638923,0.03,88253.0,88238.0,0.64396325]
[1769452639551,0.03,88251.0,88234.0,0.02480468]
[1769452639903,0.03,88251.0,88235.0,0.67938171]
[1769452640071,0.03,88249.0,88235.0,0.67938171]
[1769452641087,0.03,88249.0,88234.0,0.02480468]
[1769452641287,0.03,88248.0,88234.0,0.70418639]
[1769452642163,0.03,88247.0,88234.0,0.70418639]
[1769452642780,0.10444241,88256.0,88197.0,0.01133825]
[1769452642781,0.03,88231.0,88197.0,0.01133825]
[1769452642982,0.03645804,88256.0,88203.0,0.02480468]
[1769452642983,0.03,88229.0,88203.0,0.02480468]
[1769452643187,0.03,88229.0,88206.0,0.67938171]
[1769452643412,0.03,88229.0,88210.0,0.67938171]
[1769452643706,0.03,88229.0,88200.0,0.01133786]
[1769452643707,0.03,88229.0,88213.0,0.67938171]
[1769452643904,0.03,88249.0,88213.0,0.67938171]
[1769452644124,0.03,88233.0,88214.0,0.70418639]
[1769452644889,0.03,88233.0,88215.0,0.70418639]
[1769452645753,0.05385824,88232.0,88215.0,0.70418639]
[1769452645981,0.03,88230.0,88216.0,0.04870369]
[1769452646772,0.03,88230.0,88216.0,0.7280854]
[1769452646960,0.03,88229.0,88217.0,0.02480468]
[1769452647182,0.03,88229.0,88218.0,0.70418639]
[1769452647322,0.03,88229.0,88219.0,0.06793817]
[1769452647757,0.02385824,88239.0,88219.0,0.06793817]
[1769452647959,0.03,88238.0,88219.0,0.06793817]
[1769452648160,0.03,88236.0,88219.0,0.06793817]
[1769452648748,0.03,88236.0,88220.0,0.67938171]
[1769452648967,0.03,88236.0,88215.0,0.01133594]
[1769452648968,0.01133003,88261.0,88237.0,0.67938171]
[1769452649209,0.03,88256.0,88238.0,0.02480468]
[1769452649414,0.03,88252.0,88233.0,0.02480468]
[1769452649816,0.03,88252.0,88234.0,0.02480468]
[1769452649993,0.03,88248.0,88223.0,0.02480468]
[1769452650197,0.03,88242.0,88223.0,0.02480468]
[1769452650452,0.01133118,88252.0,88219.0,0.67938171]
[1769452650453,0.03,88240.0,88225.0,0.02480468]
[1769452650655,0.03,88240.0,88227.0,0.02480468]
[1769452651411,0.03,88244.0,88227.0,0.02480468]
[1769452651783,0.03,88244.0,88227.0,0.09522332]
[1769452653449,0.03,88244.0,88216.0,0.06801369]
[1769452653450,0.03,88234.0,88204.0,0.67938171]
[1769452653765,0.03,88230.0,88209.0,0.02480468]
[1769452653972,0.03,88230.0,88212.0,0.67938171]
[1769452654173,0.03,88230.0,88216.0,0.67938171]
[1769452654489,0.01133195,88246.0,88220.0,0.67938171]
[1769452654617,0.03,88244.0,88224.0,0.67938171]
[1769452654820,0.03,88244.0,88225.0,0.02480468]
[1769452655338,0.03,88242.0,88225.0,0.02480468]
[1769452655541,0.05666307,88241.0,88225.0,0.02480468]
[1769452655735,0.07284308,88240.0,88210.0,0.01133658]
[1769452655943,0.03,88238.0,88212.0,0.02480468]
[1769452656145,0.03,88238.0,88215.0,0.67938171]
[1769452656422,0.03,88238.0,88218.0,0.02480468]
[1769452656623,0.03,88238.0,88219.0,0.02480468]
[1769452656827,0.03,88238.0,88220.0,0.02480468]
[1769452657031,0.03,88238.0,88221.0,0.02480468]
[1769452657227,0.03,88238.0,88221.0,0.09522332]
[1769452657426,0.03,88238.0,88221.0,0.02480468]
[1769452658293,0.03,88238.0,88209.0,0.06802019]
[1769452658294,0.03,88242.0,88201.0,0.0003674]
[1769452658470,0.03,88227.0,88204.0,0.02480468]
[1769452658631,0.03,88227.0,88207.0,0.67938171]
[1769452658838,0.03,88227.0,88201.0,0.0003674]
[1769452658839,0.03,88227.0,88212.0,0.02480468]
[1769452659044,0.03,88227.0,88214.0,0.02480468]
[1769452659236,0.03,88227.0,88216.0,0.02480468]
[1769452659441,0.03,88226.0,88206.0,0.02480468]
[1769452659791,0.03,88226.0,88207.0,0.02480468]
[1769452659938,0.03,88226.0,88210.0,0.67938171]
[1769452660145,0.03,88226.0,88213.0,0.67938171]
[1769452660393,0.01133285,88239.0,88215.0,0.02480468]
[1769452660394,0.03,88235.0,88215.0,0.02480468]
[1769452660558,0.05385824,88235.0,88215.0,0.02480468]
[1769452660908,0.03,88235.0,88218.0,0.02480468]
[1769452661109,0.03,88235.0,88219.0,0.7134686]
[1769452661639,0.03,88234.0,88219.0,0.7134686]
[1769452661838,0.03,88234.0,88219.0,0.03408689]
[1769452661978,0.03,88234.0,88219.0,0.70418639]
[1769452662626,0.03,88233.0,88219.0,0.70418639]
[1769452663591,0.03,88232.0,88219.0,0.70418639]
[1769452664790,0.05385824,88238.0,88219.0,0.70418639]
[1769452665216,0.03,88236.0,88219.0,0.70418639]
[1769452665382,0.03450266,88236.0,88220.0,0.07041864]
[1769452665996,0.00450266,88235.0,88220.0,0.07041864]
[1769452666197,0.00450266,88235.0,88219.0,0.02480468]
[1769452666793,0.03,88234.0,88219.0,0.02480468]
[1769452667572,0.00450266,88233.0,88215.0,0.02480468]
[1769452667848,0.00450266,88233.0,88215.0,0.67938171]
[1769452668086,0.00450266,88233.0,88216.0,0.70418639]
[1769452668735,0.05385824,88234.0,88216.0,0.70418639]
[1769452668962,0.0583609,88234.0,88216.0,0.70418639]
[1769452669642,0.03,88231.0,88211.0,0.03903129]
[1769452669840,0.03450266,88229.0,88211.0,0.03903129]
[1769452670041,0.03450266,88229.0,88212.0,0.0851745]
[1769452670957,0.03450266,88229.0,88212.0,0.76184589]
[1769452672355,0.03,88229.0,88212.0,0.76184589]
[1769452672558,0.03,88234.0,88214.0,0.67667139]
[1769452672753,0.00450266,88233.0,88215.0,0.02429363]
[1769452673004,0.00450266,88233.0,88215.0,0.04102333]
[1769452673939,0.05877726,88231.0,88215.0,0.0167297]
[1769452675483,0.0542746,88231.0,88215.0,0.0167297]
[1769452675688,0.05877726,88231.0,88215.0,0.0167297]
[1769452676325,0.05877726,88231.0,88213.0,0.02429363]
[1769452676481,0.05877726,88231.0,88214.0,0.02429363]
[1769452676897,0.05877726,88231.0,88214.0,0.70096502]
[1769452679761,0.0542746,88231.0,88214.0,0.70096502]
[1769452679964,0.00450266,88229.0,88209.0,0.01133671]
[1769452680168,0.03450266,88227.0,88208.0,0.7689858]
[1769452680387,0.03450266,88227.0,88209.0,0.09231384]
[1769452680588,0.03450266,88227.0,88210.0,0.06801932]
[1769452680766,0.03450266,88227.0,88210.0,0.74469071]
[1769452680963,0.03450266,88227.0,88211.0,0.02429363]
[1769452681572,0.09040128,88244.0,88211.0,0.03563008]
[1769452681925,0.00450266,88240.0,88220.0,0.3790205]
[1769452682220,0.00450266,88237.0,88220.0,0.3790205]
[1769452682360,0.01133208,88245.0,88220.0,0.3790205]
[1769452682361,0.09040128,88250.0,88221.0,0.67667139]
[1769452682559,0.11342564,88249.0,88229.0,0.02429363]
[1769452682794,0.07094515,88230.0,88216.0,0.02429363]
[1769452682995,0.07094515,88230.0,88210.0,0.3790205]
[1769452682996,0.00450266,88227.0,88210.0,0.3790205]
[1769452683198,0.07094515,88230.0,88220.0,0.3790205]
[1769452683406,0.07094515,88230.0,88216.0,0.02429363]
[1769452683609,0.07094515,88230.0,88220.0,0.02429363]
[1769452683957,0.07094515,88230.0,88222.0,0.67667139]
[1769452684208,0.07094515,88230.0,88223.0,0.02429363]
[1769452684977,0.19759073,88247.0,88223.0,0.02429363]
[1769452685218,0.03,88242.0,88223.0,0.02429363]
[1769452685413,0.03,88240.0,88223.0,0.02429363]
[1769452686538,0.03,88246.0,88223.0,0.02429363]
[1769452686781,0.03,88244.0,88223.0,0.02499999]
[1769452686935,0.03,88242.0,88225.0,0.02499999]
[1769452687103,0.03,88242.0,88226.0,0.02499999]
[1769452687917,0.03,88249.0,88226.0,0.02499999]
[1769452688126,0.03,88247.0,88226.0,0.02499999]
[1769452688327,0.03,88245.0,88226.0,0.02499999]
[1769452688562,0.03,88243.0,88226.0,0.02499999]
[1769452689290,0.03,88241.0,88226.0,0.02499999]
[1769452689641,0.03,88241.0,88227.0,0.02724823]
[1769452690314,0.03,88240.0,88227.0,0.02724823]
[1769452690452,0.03,88240.0,88221.0,0.02724823]
[1769452691395,0.04133195,88246.0,88223.0,0.02724823]
[1769452691576,0.03,88244.0,88224.0,0.02724823]
[1769452691755,0.03,88242.0,88224.0,0.02724823]
[1769452692395,0.03,88240.0,88224.0,0.02724823]
[1769452693487,0.03,88239.0,88224.0,0.02724823]
[1769452694046,0.03,88239.0,88225.0,0.02499995]
[1769452694573,0.03,88238.0,88225.0,0.02499995]
[1769452695226,0.03,88238.0,88226.0,0.02499995]
[1769452695439,0.03,88237.0,88226.0,0.02499995]
[1769452696460,0.01133157,88249.0,88226.0,0.02499995]
[1769452696461,0.03,88249.0,88226.0,0.02499995]
[1769452696626,0.03,88247.0,88226.0,0.02499995]
[1769452696827,0.03,88245.0,88226.0,0.02499995]
[1769452697103,0.01133157,88249.0,88226.0,0.02499995]
[1769452697104,0.03,88243.0,88226.0,0.02499995]
[1769452697222,0.03,88241.0,88226.0,0.02499995]
[1769452697423,0.03,88239.0,88226.0,0.02499995]
[1769452698417,0.03,88238.0,88226.0,0.02499995]
[1769452699462,0.03,88237.0,88227.0,0.02275168]
[1769452699784,0.03,88237.0,88220.0,0.3761081]
[1769452699989,0.03,88237.0,88222.0,0.02261012]
[1769452700408,0.03,88236.0,88222.0,0.02261012]
[1769452701505,0.03,88235.0,88222.0,0.02261012]
[1769452702633,0.05427856,88240.0,88222.0,0.02261012]
[1769452702858,0.03,88240.0,88222.0,0.02261012]
[1769452703100,0.03,88238.0,88222.0,0.02261012]
[1769452704001,0.05427856,88238.0,88222.0,0.02261012]
[1769452710070,0.03,88236.0,88222.0,0.02261012]
[1769452710880,0.03,88236.0,88224.0,0.02261012]
[1769452711095,0.03,88235.0,88224.0,0.67677472]
[1769452711700,0.03,88235.0,88221.0,0.02261012]
[1769452712068,0.03,88234.0,88221.0,0.02261012]
[1769452712276,0.03,88234.0,88222.0,0.02261012]
[1769452712526,0.03,88234.0,88222.0,0.02281272]
[1769452713127,0.03,88233.0,88222.0,0.02281272]
[1769452713328,0.05666297,88242.0,88222.0,0.02281272]
[1769452713493,0.12482882,88241.0,88222.0,0.02281272]